bitfinex/quotes_SOLUSD_20250811
["timestamp","ask_amount","ask_price","bid_price","bid_amount"]
[1754900467891,20.55461918,183.54,183.52,5.61854351]
[1754900468408,20.55461918,183.54,183.53,4.89854351]
[1754900469487,20.55461918,183.54,183.52,0.72]
[1754900469683,20.55461918,183.54,183.53,4.89854351]
[1754900470516,20.55461918,183.54,183.53,5.61854351]
[1754900470712,20.55461918,183.54,183.53,4.89854351]
[1754900471092,20.55461918,183.54,183.51,39.08]
[1754900471291,20.55461918,183.54,183.52,4.89854351]
[1754900471603,20.55461918,183.54,183.52,5.61854351]
[1754900472590,20.55461918,183.54,183.52,0.72]
[1754900472784,15.78730313,183.53,183.52,4.89854351]
[1754900473011,15.10621557,183.52,183.51,39.08]
[1754900473306,15.10621557,183.52,183.51,38.36]
[1754900473514,15.10621557,183.52,183.5,13.1310959]
[1754900473721,15.78737735,183.51,183.5,12.4110959]
[1754900474220,21.23667166,183.51,183.5,12.4110959]
[1754900475199,21.23667166,183.51,183.5,13.1310959]
[1754900476618,21.23667166,183.51,183.5,12.4110959]
[1754900477735,15.10621557,183.51,183.5,18.02963941]
[1754900477898,15.10621557,183.51,183.5,13.1310959]
[1754900478100,20.55550988,183.51,183.5,13.1310959]
[1754900478312,20.55550988,183.51,183.5,18.02963941]
[1754900478828,15.10621557,183.51,183.5,18.02963941]
[1754900483016,15.10621557,183.52,183.5,12.4110959]
[1754900483231,15.10621557,183.52,183.51,5.55854351]
[1754900483814,15.10621557,183.52,183.5,17.30963941]
[1754900484037,15.10621557,183.52,183.5,12.4110959]
[1754900484208,5.44929431,183.51,183.5,12.4110959]
[1754900484409,5.44929431,183.51,183.5,17.96963941]
[1754900484824,15.10621557,183.52,183.5,17.96963941]
[1754900484825,5.44907934,183.52,183.5,17.96963941]
[1754900485035,5.44907934,183.52,183.51,4.89854351]
[1754900487129,5.44907934,183.52,183.51,0.66]
[1754900487709,5.44907934,183.52,183.5,17.30963941]
[1754900488330,5.44907934,183.52,183.5,17.96963941]
[1754900488845,15.78737735,183.51,183.5,12.4110959]
[1754900489509,15.78737735,183.51,183.5,13.0710959]
[1754900489709,15.10621557,183.51,183.5,17.96963941]
[1754900489937,15.10621557,183.51,183.5,13.0710959]
[1754900490240,15.10621557,183.51,183.5,17.96963941]
[1754900490935,0.03,183.54,183.5,28.31775966]
[1754900491125,0.03,183.54,183.53,4.89854351]
[1754900491443,0.03,183.54,183.53,43.25854351]
[1754900491622,15.13621557,183.54,183.53,43.91854351]
[1754900492135,5.47840361,183.54,183.53,43.91854351]
[1754900493140,6.15945406,183.54,183.51,43.91854351]
[1754900493809,15.10621557,183.53,183.51,38.36]
[1754900494009,15.10621557,183.53,183.51,39.02]
[1754900494205,15.10621557,183.53,183.51,43.91854351]
[1754900494917,5.44899738,183.52,183.51,43.91854351]
[1754900495949,20.55521295,183.52,183.5,12.4110959]
[1754900496148,20.55521295,183.52,183.5,50.7510959]
[1754900496435,21.23633762,183.52,183.5,51.4110959]
[1754900497215,20.55521295,183.52,183.5,51.4110959]
[1754900499824,15.10621557,183.51,183.5,51.4110959]
[1754900500443,21.23667166,183.51,183.5,51.4110959]
[1754900500617,21.23667166,183.51,183.5,13.0710959]
[1754900500817,20.55550988,183.51,183.5,13.0710959]
[1754900501542,20.55550988,183.51,183.5,17.96963941]
[1754900502729,20.55550988,183.51,183.5,13.0710959]
[1754900504326,20.55550988,183.51,183.5,17.96963941]
[1754900506341,0.03,183.54,183.5,22.86818292]
[1754900506551,0.03,183.54,183.53,4.89854351]
[1754900506734,0.03,183.54,183.53,43.23854351]
[1754900507121,0.03,183.54,183.53,43.89854351]
[1754900510148,0.03,183.54,183.53,39.0]
[1754900510330,0.03,183.54,183.53,43.23854351]
[1754900510735,0.03,183.54,183.53,43.89854351]
[1754900511144,15.13621557,183.54,183.53,43.89854351]
[1754900513163,20.58461918,183.54,183.53,43.23854351]
[1754900513832,20.58461918,183.54,183.53,43.94854351]
[1754900515854,20.58461918,183.54,183.53,39.05]
[1754900516055,20.58461918,183.54,183.53,43.94854351]
[1754900517949,15.13621557,183.54,183.53,43.94854351]
[1754900518834,15.13621557,183.54,183.53,39.05]
[1754900519036,15.13621557,183.54,183.53,43.94854351]
[1754900521866,0.03,183.54,183.53,43.94854351]
[1754900522361,0.03,183.54,183.53,49.39724399]
[1754900522542,0.03,183.54,183.53,43.94854351]
[1754900523352,0.03,183.54,183.53,49.39724399]
[1754900524042,0.03,183.54,183.53,43.94854351]
[1754900524241,0.03,183.54,183.53,43.92854351]
[1754900524566,0.03,183.54,183.53,49.37724399]
[1754900524761,0.03,183.54,183.53,43.92854351]
[1754900526152,15.13621557,183.54,183.53,38.32]
[1754900526411,20.58461918,183.54,183.53,38.32]
[1754900526594,20.58461918,183.54,183.53,43.21854351]
[1754900526782,0.03,183.54,183.53,43.92854351]
[1754900526971,15.13621557,183.54,183.53,43.92854351]
[1754900527162,0.03,183.54,183.53,43.92854351]
[1754900527662,15.13621557,183.54,183.53,43.92854351]
[1754900527866,5.47840361,183.54,183.53,43.92854351]
[1754900528579,15.13621557,183.54,183.53,39.03]
[1754900528856,15.13621557,183.54,183.53,43.92854351]
[1754900531159,5.47840361,183.54,183.53,43.92854351]
[1754900532475,5.47840361,183.54,183.53,43.21854351]
[1754900532660,5.47840361,183.54,183.53,43.92854351]
[1754900532874,15.13621557,183.54,183.53,43.92854351]
[1754900533657,0.03,183.54,183.53,43.92854351]
[1754900536557,0.03,183.54,183.53,49.37724399]
[1754900537271,0.03,183.54,183.53,44.47870048]
[1754900537488,0.03,183.54,183.53,49.37724399]
[1754900538264,0.03,183.56,183.55,26.0]
[1754900538473,0.03,183.56,183.55,69.21854351]
[1754900538653,0.03,183.56,183.55,69.92854351]
[1754900538971,0.03,183.56,183.55,5.60854351]
[1754900539363,0.03,183.56,183.55,43.92854351]
[1754900542886,0.03,183.56,183.55,49.37665029]
[1754900544282,0.03,183.56,183.55,43.92854351]
[1754900545984,0.03,183.56,183.55,43.21854351]
[1754900547089,0.03,183.56,183.55,38.32]
[1754900547380,0.03,183.56,183.55,43.21854351]
[1754900547769,0.03,183.56,183.54,4.89854351]
[1754900547961,0.03,183.56,183.55,43.19854351]
[1754900548368,0.03,183.56,183.55,43.87854351]
[1754900549171,0.03,183.56,183.55,43.19854351]
[1754900549586,0.03,183.56,183.55,38.3]
[1754900549791,0.03,183.56,183.55,43.19854351]
[1754900550476,0.03,183.56,183.55,38.3]
[1754900550674,0.03,183.56,183.55,43.19854351]
[1754900551388,0.03,183.56,183.55,43.87854351]
[1754900551582,0.03,183.56,183.55,38.98]
[1754900551778,0.03,183.56,183.55,43.87854351]
[1754900552568,0.03,183.56,183.55,49.32665029]
[1754900552776,0.03,183.57,183.55,49.32665029]
[1754900553084,0.03,183.57,183.56,31.57854351]
[1754900554598,0.03,183.57,183.56,37.02635349]
[1754900557793,0.03,183.58,183.57,10.34605672]
[1754900558096,0.03,183.58,183.57,49.32605672]
[1754900559772,0.03,183.58,183.57,11.02605672]
[1754900559976,0.03,183.58,183.57,43.87854351]
[1754900561010,0.03,183.58,183.57,43.19854351]
[1754900561779,0.03,183.58,183.57,43.87854351]
[1754900566597,0.03,183.58,183.57,49.32605672]
[1754900567375,0.03,183.58,183.55,0.06]
[1754900567580,0.03,183.58,183.57,4.89854351]
[1754900567801,0.24,183.58,183.57,43.19854351]
[1754900568110,0.24,183.58,183.57,38.3]
[1754900568308,15.13621557,183.58,183.57,43.19854351]
[1754900568482,20.58343204,183.58,183.57,43.19854351]
[1754900569488,20.58343204,183.58,183.57,38.3]
[1754900569690,20.58343204,183.58,183.57,43.19854351]
[1754900570011,0.03,183.58,183.57,43.19854351]
[1754900570312,0.03,183.58,183.57,43.87854351]
[1754900571012,0.03,183.58,183.57,49.32605672]
[1754900571187,0.03,183.58,183.57,75.32605672]
[1754900571917,0.03,183.58,183.57,44.42751321]
[1754900572217,0.03,183.58,183.57,43.87854351]
[1754900573015,0.03,183.58,183.57,5.57854351]
[1754900573220,0.03,183.58,183.57,4.89854351]
[1754900573388,0.03,183.58,183.57,43.19854351]
[1754900573815,0.03,183.58,183.57,43.91854351]
[1754900577502,0.03,183.58,183.57,43.19854351]
[1754900577704,0.03,183.58,183.55,0.06]
[1754900577919,0.24,183.58,183.56,38.28]
[1754900578123,0.03,183.58,183.57,4.89854351]
[1754900578593,0.03,183.58,183.56,38.28]
[1754900578788,0.03,183.58,183.56,43.17854351]
[1754900578990,15.10621557,183.57,183.56,43.17854351]
[1754900579192,15.10621557,183.57,183.55,4.95854351]
[1754900579418,15.10621557,183.57,183.56,38.28]
[1754900579720,15.10621557,183.57,183.56,43.17854351]
[1754900579905,15.10621557,183.57,183.56,38.28]
[1754900580100,15.10621557,183.57,183.56,43.17854351]
[1754900580305,15.13621557,183.58,183.56,43.17854351]
[1754900580507,15.13621557,183.58,183.57,4.89854351]
[1754900581209,15.13621557,183.58,183.56,38.28]
[1754900581417,15.13621557,183.58,183.57,4.89854351]
[1754900581708,5.47721647,183.58,183.56,43.17854351]
[1754900581919,20.58343204,183.58,183.56,43.17854351]
[1754900583710,15.13621557,183.58,183.56,43.17854351]
[1754900584116,20.58349612,183.58,183.56,43.17854351]
[1754900585316,20.58349612,183.58,183.57,0.06]
[1754900586918,15.13621557,183.58,183.57,0.06]
[1754900587106,20.58343204,183.58,183.57,0.06]
[1754900587534,20.58343204,183.58,183.57,4.95854351]
[1754900588939,20.79343204,183.58,183.57,0.06]
[1754900589112,25.69197555,183.58,183.57,0.06]
[1754900589930,25.69197555,183.58,183.57,1e-08]
[1754900590929,41.10621557,183.56,183.55,1e-08]
[1754900591224,20.68573532,183.56,183.55,1e-08]
[1754900591399,20.89573532,183.56,183.55,1e-08]
[1754900591603,46.89573532,183.56,183.55,1e-08]
[1754900591823,20.89573532,183.56,183.55,1e-08]
[1754900592323,76.89573532,183.56,183.55,1e-08]
[1754900592901,82.1335453,183.56,183.55,1e-08]
[1754900593927,52.1335453,183.56,183.55,1e-08]
[1754900596834,46.55461918,183.54,183.53,1e-08]
[1754900597144,52.13421314,183.54,183.53,1e-08]
[1754900597328,52.34421314,183.54,183.53,1e-08]
[1754900601022,47.23566963,183.54,183.53,1e-08]
[1754900601227,51.45316269,183.54,183.53,1e-08]
[1754900601621,51.66316269,183.54,183.53,1e-08]
[1754900601826,52.34421314,183.54,183.53,1e-08]
[1754900602232,52.13421314,183.54,183.53,1e-08]
[1754900602435,90.43421314,183.54,183.53,1e-08]
[1754900602620,52.13421314,183.54,183.53,1e-08]
[1754900602935,90.64421314,183.54,183.53,1e-08]
[1754900603513,90.43421314,183.54,183.53,1e-08]
[1754900603730,85.53566963,183.54,183.53,1e-08]
[1754900603930,90.43421314,183.54,183.53,1e-08]
[1754900604741,21.23566963,183.54,183.53,0.71000001]
[1754900605918,26.13421314,183.54,183.53,1e-08]
[1754900606825,21.23566963,183.54,183.53,1e-08]
[1754900607021,21.23566963,183.54,183.53,0.71000001]
[1754900607540,21.23566963,183.54,183.53,1e-08]
[1754900607835,26.13421314,183.54,183.53,1e-08]
[1754900609823,21.23566963,183.54,183.53,1e-08]
[1754900610022,20.55461918,183.54,183.53,0.71000001]
[1754900611032,15.10621557,183.54,183.53,5.60854352]
[1754900611619,15.10621557,183.54,183.53,0.71000001]
[1754900611818,15.10621557,183.54,183.53,5.60854352]
[1754900612638,0.03,183.56,183.53,5.60854352]
[1754900612832,0.03,183.56,183.55,4.89854351]
[1754900613233,0.03,183.56,183.55,5.60854351]
[1754900614453,0.03,183.56,183.55,11.05665029]
[1754900621066,0.03,183.56,183.55,5.60854351]
[1754900621356,0.03,183.56,183.55,43.88854351]
[1754900622754,0.03,183.56,183.55,38.28]
[1754900623264,0.03,183.56,183.55,4.89854351]
[1754900623465,0.03,183.56,183.53,1e-08]
[1754900623466,15.34621557,183.56,183.53,1e-08]
[1754900623637,15.10621557,183.54,183.53,1e-08]
[1754900624748,20.00475908,183.54,183.53,1e-08]
[1754900625456,20.55461918,183.54,183.53,1e-08]
[1754900625669,15.10621557,183.54,183.53,1e-08]
[1754900625842,15.10621557,183.54,183.53,5.60854352]
[1754900626558,6.12945406,183.54,183.53,1e-08]
[1754900626771,26.34421314,183.54,183.53,1e-08]
[1754900630258,21.23566963,183.54,183.53,1e-08]
[1754900630449,21.23566963,183.54,183.53,5.60854352]
[1754900630861,15.10621557,183.54,183.53,5.60854352]
[1754900631048,15.13621557,183.54,183.53,5.60854352]
[1754900631781,20.58461918,183.54,183.53,5.60854352]
[1754900631938,15.13621557,183.54,183.53,5.60854352]
[1754900633260,15.13621557,183.54,183.53,0.71000001]
[1754900633638,15.13621557,183.54,183.53,5.60854352]
[1754900634248,20.58461918,183.54,183.53,1e-08]
[1754900635768,20.58461918,183.54,183.53,5.56854352]
[1754900635769,15.13621557,183.54,183.53,5.56854352]
[1754900638440,15.13621557,183.54,183.53,0.67000001]
[1754900638749,15.13621557,183.54,183.53,5.56854352]
[1754900640359,0.03,183.54,183.53,5.56854352]
[1754900640668,0.03,183.54,183.53,11.017244]
[1754900642272,0.03,183.54,183.53,49.297244]
[1754900647070,0.03,183.56,183.55,26.0]
[1754900647260,0.03,183.56,183.55,30.89854351]
[1754900647452,0.03,183.56,183.55,31.56854351]
[1754900648348,0.03,183.56,183.55,37.01665029]
[1754900649573,0.03,183.56,183.55,31.56854351]
[1754900649746,0.03,183.56,183.55,37.01665029]
[1754900650871,0.03,183.56,183.55,31.56854351]
[1754900651260,0.03,183.56,183.55,37.01665029]
[1754900651461,0.03,183.56,183.55,31.56854351]
[1754900651675,0.03,183.56,183.55,69.82854351]
[1754900653366,0.03,183.56,183.55,75.27665029]
[1754900654085,0.03,183.56,183.55,43.82854351]
[1754900654767,0.03,183.56,183.55,49.27665029]
[1754900662369,0.03,183.56,183.55,124.67665029]
[1754900662896,0.03,183.56,183.55,150.67665029]
[1754900667376,0.03,183.58,183.57,26.0]
[1754900667576,0.03,183.58,183.57,69.15854351]
[1754900667789,0.03,183.58,183.57,69.83854351]
[1754900668476,0.03,183.58,183.57,145.23854351]
[1754900669892,0.03,183.58,183.57,150.68605672]
[1754900672006,0.03,183.58,183.57,150.00605672]
[1754900672605,0.03,183.58,183.57,150.68605672]
[1754900673509,0.03,183.58,183.57,119.23854351]
[1754900673714,0.03,183.58,183.57,124.68605672]
[1754900674397,0.03,183.58,183.57,49.28605672]
[1754900675685,0.03,183.58,183.57,48.60605672]
[1754900676102,0.03,183.58,183.57,43.15854351]
[1754900677011,0.03,183.58,183.57,43.83854351]
[1754900677708,0.03,183.58,183.57,49.28605672]
[1754900678887,0.03,183.58,183.57,44.38751321]
[1754900679207,0.03,183.58,183.57,49.28605672]
[1754900680397,0.03,183.58,183.57,48.60605672]
[1754900680794,0.03,183.58,183.57,43.15854351]
[1754900682119,0.03,183.58,183.57,49.28605672]
[1754900683725,0.03,183.58,183.57,43.83854351]
[1754900683892,0.03,183.58,183.57,49.28605672]
[1754900685006,0.03,183.58,183.57,48.60605672]
[1754900685394,0.03,183.58,183.57,49.28605672]
[1754900691899,0.03,183.58,183.57,43.83854351]
[1754900692405,0.03,183.58,183.57,41.36797267]
[1754900693009,0.03,183.58,183.57,47.53548588]
[1754900694229,0.03,183.58,183.57,49.28380364]
[1754900694722,0.03,183.58,183.57,43.83629043]
[1754900694893,0.03,183.58,183.57,43.11629043]
[1754900695096,0.03,183.58,183.57,43.83629043]
[1754900696122,0.03,183.58,183.57,49.28380364]
[1754900696516,0.03,183.58,183.57,43.83629043]
[1754900697022,0.03,183.58,183.57,49.28380364]
[1754900697216,0.03,183.58,183.57,43.83629043]
[1754900697524,0.03,183.58,183.57,43.11629043]
[1754900698029,0.03,183.58,183.57,38.26]
[1754900698218,0.03,183.58,183.57,43.11629043]
[1754900699512,0.03,183.58,183.57,38.26]
[1754900699714,0.03,183.58,183.57,43.11629043]
[1754900699924,0.24,183.58,183.57,38.26]
[1754900700157,5.68721647,183.58,183.57,38.26]
[1754900700311,15.10621557,183.57,183.56,0.06]
[1754900700512,20.172506,183.57,183.56,0.06]
[1754900702129,25.62001921,183.57,183.56,0.06]
[1754900707517,20.76372878,183.57,183.56,0.06]
[1754900707836,25.62001921,183.57,183.56,0.06]
[1754900710629,25.62001921,183.57,183.54,0.06]
[1754900710824,19.962506,183.55,183.54,0.06]
[1754900711328,20.172506,183.55,183.54,0.06]
[1754900711926,25.62061278,183.55,183.54,0.06]
[1754900714243,25.62061278,183.55,183.53,1e-08]
[1754900714549,20.85355645,183.54,183.53,1e-08]
[1754900715740,20.64355645,183.54,183.53,1e-08]
[1754900716541,26.09196006,183.54,183.53,1e-08]
[1754900717624,21.23566963,183.54,183.53,0.72000001]
[1754900718025,26.09196006,183.54,183.53,1e-08]
[1754900719346,21.23566963,183.54,183.53,1e-08]
[1754900721053,26.09196006,183.54,183.53,1e-08]
[1754900722420,21.23566963,183.54,183.53,1e-08]
[1754900722620,20.55461918,183.54,183.53,0.72000001]
[1754900727448,15.10621557,183.54,183.53,5.57629044]
[1754900727746,15.10621557,183.54,183.53,0.72000001]
[1754900727932,20.55461918,183.54,183.53,0.72000001]
[1754900729845,20.55461918,183.54,183.53,1e-08]
[1754900730165,21.23566963,183.54,183.53,1e-08]
[1754900730644,26.09196006,183.54,183.53,1e-08]
[1754900737459,15.10621557,183.54,183.53,0.72000001]
[1754900737645,15.10621557,183.54,183.53,5.57629044]
[1754900738159,0.03,183.56,183.53,5.57629044]
[1754900738353,0.03,183.56,183.55,4.85629043]
[1754900738941,0.03,183.56,183.55,5.57629043]
[1754900740438,0.03,183.56,183.55,11.02439721]
[1754900740839,0.03,183.56,183.55,5.57629043]
[1754900741557,0.03,183.56,183.55,11.02439721]
[1754900747969,0.03,183.56,183.55,0.72]
[1754900748154,0.03,183.56,183.55,5.57629043]
[1754900749576,0.03,183.56,183.55,11.02439721]
[1754900749775,0.03,183.56,183.55,5.57629043]
[1754900750851,0.03,183.56,183.55,49.22439721]
[1754900753272,0.03,183.56,183.55,75.22439721]
[1754900757176,0.03,183.56,183.55,150.62439721]
[1754900761272,0.03,183.58,183.57,26.0]
[1754900761450,0.03,183.58,183.57,69.03629043]
[1754900761655,0.03,183.58,183.57,69.71629043]
[1754900763079,0.03,183.58,183.57,150.56380364]
[1754900766976,0.03,183.58,183.57,145.70751321]
[1754900767173,0.03,183.58,183.57,150.56380364]
[1754900768984,0.03,183.58,183.57,75.16380364]
[1754900781591,0.03,183.59,183.57,80.02009407]
[1754900781786,0.03,183.59,183.58,17.35501883]
[1754900782003,0.03,183.59,183.58,12.4987284]
[1754900785213,0.03,183.59,183.58,10.9835069]
[1754900786784,0.03,183.59,183.58,85.7035069]
[1754900786987,0.03,183.59,183.58,124.5435069]
[1754900787606,0.03,183.59,183.58,123.8635069]
[1754900790690,0.03,183.59,183.58,118.41629043]
[1754900791204,0.27,183.59,183.56,0.06]
[1754900791396,0.27,183.59,183.57,38.16]
[1754900791703,0.27,183.59,183.58,4.85629043]
[1754900792198,0.03,183.59,183.58,4.85629043]
[1754900793191,0.03,183.59,183.57,38.16]
[1754900793392,0.03,183.59,183.58,4.85629043]
[1754900796214,15.37621557,183.59,183.57,43.01629043]
[1754900796811,0.24,183.58,183.57,38.16]
[1754900797023,5.09629043,183.58,183.56,0.06]
[1754900797326,0.24,183.57,183.56,38.22]
[1754900797618,0.24,183.57,183.56,0.06]
[1754900798398,5.68751321,183.57,183.56,0.06]
[1754900799193,5.44728898,183.58,183.56,0.06]
[1754900799529,5.68728898,183.58,183.56,0.06]
[1754900799893,0.24,183.58,183.56,0.06]
[1754900800295,26.12037196,183.59,183.56,0.06]
[1754900800602,26.36037196,183.59,183.56,0.06]
[1754900801513,15.13621557,183.59,183.57,4.85629043]
[1754900801721,0.03,183.59,183.57,38.84]
[1754900801901,0.03,183.59,183.58,4.85629043]
[1754900802088,0.03,183.59,183.57,38.84]
[1754900802089,0.03,183.59,183.57,43.01629043]
[1754900802526,15.13621557,183.59,183.57,43.01629043]
[1754900802698,15.13621557,183.59,183.57,38.16]
[1754900803618,15.13621557,183.59,183.57,43.01629043]
[1754900804309,15.13621557,183.59,183.57,38.16]
[1754900804504,5.71696611,183.59,183.57,38.16]
[1754900804700,15.10621557,183.58,183.57,38.16]
[1754900805101,15.13621557,183.59,183.57,38.16]
[1754900806298,20.58319341,183.59,183.57,38.16]
[1754900806710,25.43948384,183.59,183.57,38.16]
[1754900806904,0.24,183.58,183.57,38.16]
[1754900807129,5.09629043,183.58,183.57,38.16]
[1754900807732,4.85629043,183.58,183.57,38.16]
[1754900808235,10.3035069,183.58,183.57,38.16]
[1754900809219,10.3035069,183.58,183.56,0.06]
[1754900809220,5.44721647,183.58,183.56,0.06]
[1754900809537,5.44721647,183.58,183.56,0.74]
[1754900810036,5.44721647,183.58,183.56,0.06]
[1754900810340,5.09629043,183.57,183.56,0.06]
[1754900810520,20.88344515,183.57,183.56,0.06]
[1754900812412,26.33095836,183.57,183.56,0.06]
[1754900815023,15.10621557,183.56,183.54,0.06]
[1754900815222,20.64351934,183.55,183.54,0.06]
[1754900815436,20.88351934,183.55,183.54,0.06]
[1754900816438,20.64351934,183.55,183.54,0.06]
[1754900816758,20.88351934,183.55,183.54,0.06]
[1754900817334,26.09162612,183.55,183.54,0.06]
[1754900820154,0.68093915,183.57,183.54,0.74]
[1754900820317,0.03,183.59,183.56,4.85629043]
[1754900820624,0.03,183.59,183.58,4.85629043]
[1754900820813,0.03,183.59,183.58,5.53629043]
[1754900821018,15.10621557,183.58,183.56,4.85629043]
[1754900821430,15.10621557,183.58,183.57,0.68]
[1754900821822,0.03,183.59,183.57,0.68]
[1754900822340,0.03,183.59,183.57,5.53629043]
[1754900822550,15.13621557,183.59,183.56,4.85629043]
[1754900822725,15.13621557,183.59,183.55,4.85629043]
[1754900822927,0.68090205,183.58,183.55,0.68]
[1754900823422,0.68090205,183.58,183.56,0.68]
[1754900823631,0.68090205,183.58,183.57,0.68]
[1754900823853,0.68090205,183.58,183.55,0.74]
[1754900824369,6.12817283,183.58,183.57,0.06]
[1754900825217,26.33067883,183.58,183.57,0.06]
[1754900825828,41.10621557,183.56,183.55,0.06]
[1754900826032,45.962506,183.56,183.55,0.06]
[1754900826233,52.33129222,183.56,183.55,0.06]
[1754900826626,52.09129222,183.56,183.55,0.06]
[1754900827240,26.09129222,183.56,183.55,0.06]
[1754900828144,26.33129222,183.56,183.55,0.06]
[1754900828352,26.09129222,183.56,183.55,0.06]
[1754900830444,15.10621557,183.56,183.55,5.59629043]
[1754900832129,20.55402555,183.56,183.55,0.74]
[1754900832738,15.10621557,183.56,183.55,0.74]
[1754900836950,15.10621557,183.56,183.55,5.59629043]
[1754900838152,0.03,183.59,183.55,11.04437959]
[1754900838335,0.03,183.59,183.58,4.85629043]
[1754900838537,0.03,183.59,183.57,4.85629043]
[1754900839053,15.10621557,183.58,183.57,5.53629043]
[1754900839423,0.03,183.59,183.57,5.53629043]
[1754900840461,0.03,183.59,183.58,0.68]
[1754900845971,0.03,183.59,183.58,5.53629043]
[1754900846339,0.03,183.59,183.58,5.52629043]
[1754900848169,0.03,183.59,183.58,10.9735069]
[1754900848368,0.03,183.59,183.58,5.52629043]
[1754900848544,0.03,183.59,183.58,10.9735069]
[1754900848940,0.03,183.59,183.58,5.52629043]
[1754900849775,0.03,183.59,183.58,10.9735069]
[1754900851475,0.03,183.59,183.58,49.1135069]
[1754900854864,0.03,183.59,183.58,43.66629043]
[1754900855676,0.03,183.59,183.58,49.1135069]
[1754900856378,0.03,183.59,183.58,43.66629043]
[1754900857060,0.03,183.59,183.58,49.1135069]
[1754900863951,0.03,183.59,183.58,43.66629043]
[1754900865898,0.03,183.59,183.58,49.1135069]
[1754900880892,0.03,183.6,183.58,49.1135069]
[1754900880893,0.03,183.6,183.58,53.96979733]
[1754900881081,0.03,183.61,183.6,35.71258086]
[1754900881278,0.03,183.61,183.6,73.81258086]
[1754900881485,0.03,183.61,183.6,74.53258086]
[1754900881886,0.03,183.61,183.6,78.98581471]
[1754900882786,0.03,183.61,183.6,84.4324378]
[1754900884284,0.03,183.62,183.6,91.3947312]
[1754900884481,0.03,183.62,183.61,5.57629043]
[1754900885986,0.03,183.62,183.61,11.02261688]
[1754900889508,0.27,183.62,183.61,68.95629043]
[1754900889695,0.03,183.62,183.61,68.95629043]
[1754900890005,0.03,183.62,183.61,49.12261688]
[1754900893108,0.03,183.62,183.61,42.95629043]
[1754900893413,0.03,183.62,183.61,48.40261688]
[1754900893983,0.03,183.62,183.61,49.12261688]
[1754900894383,0.03,183.62,183.61,44.26632645]
[1754900894602,0.03,183.62,183.61,49.12261688]
[1754900895085,0.03,183.62,183.61,42.95629043]
[1754900895287,0.03,183.62,183.61,38.1]
[1754900895489,0.03,183.62,183.61,42.95629043]
[1754900898816,0.03,183.62,183.61,38.1]
[1754900899017,15.37621557,183.62,183.61,38.1]
[1754900899309,0.27,183.62,183.61,38.1]
[1754900899605,15.37621557,183.62,183.61,38.1]
[1754900900708,15.13621557,183.62,183.61,38.1]
[1754900901000,15.13621557,183.62,183.61,42.95629043]
[1754900901795,15.13621557,183.62,183.61,38.1]
[1754900902114,15.13621557,183.62,183.61,42.95629043]
[1754900902328,0.03,183.62,183.61,42.95629043]
[1754900902486,0.03,183.62,183.61,43.60629043]
[1754900903916,0.03,183.62,183.61,49.05261688]
[1754900908099,0.03,183.62,183.61,43.60629043]
[1754900908291,0.03,183.62,183.61,42.95629043]
[1754900908624,0.03,183.62,183.61,4.85629043]
[1754900908805,0.27,183.62,183.61,42.93629043]
[1754900909004,0.03,183.62,183.61,42.93629043]
[1754900909500,0.03,183.62,183.61,38.08]
[1754900909707,0.03,183.62,183.61,42.93629043]
[1754900913098,0.03,183.62,183.61,43.58629043]
[1754900913513,0.03,183.62,183.61,42.93629043]
[1754900913918,0.03,183.62,183.61,38.08]
[1754900914308,15.10621557,183.61,183.6,38.14]
[1754900914510,15.34621557,183.61,183.6,38.14]
[1754900915037,20.79254202,183.61,183.6,38.14]
[1754900916433,15.10621557,183.61,183.6,38.14]
[1754900916613,15.10621557,183.61,183.6,42.99629043]
[1754900917024,0.03,183.62,183.6,42.99629043]
[1754900917836,0.03,183.62,183.6,38.14]